fUST/lending_fUST_20260417
["ID","MTS","AMOUNT","RATE_DAILY","PERIOD"]
[420635874,1776387046320,-5457.94,9.315e-05,2]
[420635875,1776387046329,-1318.97,9.315e-05,2]
[420635876,1776387046337,-656.29,9.315e-05,2]
[420635877,1776387046347,-500.0,9.315e-05,2]
[420635878,1776387046356,-5372.98,9.315e-05,2]
[420635879,1776387046365,-3709.08,9.315e-05,2]
[420635880,1776387046374,-2023.17,9.315e-05,2]
[420635881,1776387046383,-500.0,9.315e-05,2]
[420635882,1776387046392,-944.92,9.315e-05,2]
[420635883,1776387046401,-500.0,9.315e-05,2]
[420635884,1776387046411,-566.29,9.315e-05,2]
[420635885,1776387046420,-2280.4,9.315e-05,2]
[420635886,1776387046430,-500.0,9.315e-05,2]
[420635887,1776387046439,-1206.044491,9.315e-05,2]
[420635888,1776387046448,-640.56,9.315e-05,2]
[420635889,1776387046458,-500.0,9.315e-05,2]
[420635890,1776387046467,-4674.04,9.315e-05,2]
[420635891,1776387046477,-500.0,9.315e-05,2]
[420635892,1776387046486,-2994.88,9.315e-05,2]
[420635893,1776387046496,-500.0,9.315e-05,2]
[420635894,1776387046505,-899.34,9.315e-05,2]
[420635895,1776387046514,-587.68,9.315e-05,2]
[420635896,1776387046523,-5453.75,9.315e-05,2]
[420635897,1776387046533,-1955.11,9.315e-05,2]
[420635898,1776387046542,-500.0,9.315e-05,2]
[420635899,1776387046551,-1790.51619551,9.315e-05,2]
[420635901,1776387046940,-900.79047535,8.219e-05,2]
[420635906,1776387047628,-4373.0,8.219e-05,2]
[420635907,1776387047639,-1167.16952465,8.219e-05,2]
[420635908,1776387047648,-500.0,8.219e-05,2]
[420635909,1776387047658,-6440.96,8.493e-05,2]
[420635910,1776387047667,-635.2995002,8.493e-05,2]
[420635911,1776387047677,-6440.96,8.767e-05,2]
[420635912,1776387047687,-2860.85895088,9.041e-05,2]
[420635934,1776387151733,200.0,0.00024292,120]
[420635936,1776387331178,200.0,0.00023897,120]
[420635937,1776387451710,200.0,0.00023618,120]
[420635940,1776387733044,301.15361122,0.00024,120]
[420635943,1776388009882,155.0,0.00024657,120]
[420635947,1776388238551,-522.0,7.216e-05,2]
[420635948,1776388238561,-290.61829468,7.216e-05,2]
[420635949,1776388238571,-5148.29407358,7.274e-05,2]
[420635950,1776388238580,-9950.10712629,7.374e-05,2]
[420635951,1776388238589,-9848.8005308,7.6e-05,2]
[420635952,1776388238599,-11654.47358289,8.205e-05,2]
[420635953,1776388238608,-160.0,8.206e-05,2]
[420635954,1776388238617,-2150.738,8.214e-05,2]
[420635955,1776388238626,-210.40400421,8.218e-05,2]
[420635956,1776388238635,-500.0,8.218e-05,2]
[420635957,1776388238644,-363.64248212,8.218e-05,2]
[420635958,1776388238654,-500.0,8.218e-05,2]
[420635959,1776388238663,-350.51790579,8.218e-05,2]
[420635960,1776388238672,-192.91236844,8.218e-05,2]
[420635961,1776388238682,-500.0,8.218e-05,2]
[420635962,1776388238691,-500.0,8.218e-05,2]
[420635963,1776388238700,-500.0,8.218e-05,2]
[420635966,1776388238710,-500.0,8.218e-05,2]
[420635969,1776388238720,-500.0,8.218e-05,2]
[420635970,1776388238730,-500.0,8.218e-05,2]
[420635971,1776388238739,-500.0,8.218e-05,2]
[420635972,1776388238749,-500.0,8.218e-05,2]
[420635973,1776388238758,-500.0,8.218e-05,2]
[420635974,1776388238768,-500.0,8.218e-05,2]
[420635975,1776388238777,-500.0,8.218e-05,2]
[420635976,1776388238787,-500.0,8.218e-05,2]
[420635977,1776388238797,-194.6818815,8.218e-05,2]
[420635978,1776388238806,-400.0,8.218e-05,2]
[420635979,1776388238816,-500.0,8.218e-05,2]
[420635980,1776388238826,-500.0,8.219e-05,2]
[420635981,1776388238835,-172.18901468,8.219e-05,2]
[420635982,1776388238845,-500.0,8.219e-05,2]
[420635983,1776388238854,-500.0,8.219e-05,2]
[420635984,1776388238864,-215.94702839,8.219e-05,2]
[420635985,1776388238873,-170.54306624,8.219e-05,2]
[420635986,1776388238882,-542.86,8.219e-05,2]
[420635987,1776388238892,-500.0,8.219e-05,2]
[420635988,1776388238901,-1281.2879,8.219e-05,2]
[420635989,1776388238911,-500.0,8.219e-05,2]
[420635990,1776388238920,-929.15,8.219e-05,2]
[420635991,1776388238930,-500.0,8.219e-05,2]
[420635992,1776388238939,-778.01,8.219e-05,2]
[420635993,1776388238949,-500.0,8.219e-05,2]
[420635994,1776388238958,-500.0,8.219e-05,2]
[420635995,1776388238967,-500.0,8.219e-05,2]
[420635996,1776388238976,-500.0,8.219e-05,2]
[420635997,1776388238986,-500.0,8.219e-05,2]
[420635998,1776388238995,-500.0,8.219e-05,2]
[420635999,1776388239004,-500.0,8.219e-05,2]
[420636000,1776388239013,-500.0,8.219e-05,2]
[420636001,1776388239023,-500.0,8.219e-05,2]
[420636002,1776388239032,-500.0,8.219e-05,2]
[420636003,1776388239042,-500.0,8.219e-05,2]
[420636004,1776388239050,-500.0,8.219e-05,2]
[420636005,1776388239060,-500.0,8.219e-05,2]
[420636006,1776388239069,-2148.14,8.219e-05,2]
[420636007,1776388239078,-500.0,8.219e-05,2]
[420636008,1776388239087,-1667.83,8.219e-05,2]
[420636009,1776388239097,-500.0,8.219e-05,2]
[420636010,1776388239107,-500.0,8.219e-05,2]
[420636011,1776388239116,-500.0,8.219e-05,2]
[420636012,1776388239126,-500.0,8.219e-05,2]
[420636013,1776388239136,-500.0,8.219e-05,2]
[420636014,1776388239145,-500.0,8.219e-05,2]
[420636015,1776388239154,-500.0,8.219e-05,2]
[420636016,1776388239164,-500.0,8.219e-05,2]
[420636017,1776388239173,-500.0,8.219e-05,2]
[420636018,1776388239182,-500.0,8.219e-05,2]
[420636019,1776388239192,-500.0,8.219e-05,2]
[420636020,1776388239201,-500.0,8.219e-05,2]
[420636021,1776388239210,-1635.34,8.219e-05,2]
[420636022,1776388239220,-500.0,8.219e-05,2]
[420636023,1776388239229,-500.0,8.219e-05,2]
[420636024,1776388239238,-511.65,8.219e-05,2]
[420636025,1776388239248,-500.0,8.219e-05,2]
[420636026,1776388239258,-738.35,8.219e-05,2]
[420636027,1776388239267,-1067.71,8.219e-05,2]
[420636028,1776388239276,-1744.31,8.219e-05,2]
[420636029,1776388239285,-500.0,8.219e-05,2]
[420636030,1776388239294,-2480.89,8.219e-05,2]
[420636031,1776388239304,-500.0,8.219e-05,2]
[420636032,1776388239314,-500.0,8.219e-05,2]
[420636033,1776388239323,-500.0,8.219e-05,2]
[420636034,1776388239332,-500.0,8.219e-05,2]
[420636035,1776388239342,-500.0,8.219e-05,2]
[420636037,1776388239351,-989.67,8.219e-05,2]
[420636039,1776388239360,-500.80268656,8.219e-05,2]
[420636040,1776388239370,-500.0,8.219e-05,2]
[420636041,1776388239380,-5770.46,8.219e-05,2]
[420636042,1776388239389,-448.46376768,8.219e-05,2]
[420636044,1776388239399,-500.0,8.219e-05,2]
[420636046,1776388239408,-500.0,8.219e-05,2]
[420636048,1776388239418,-991.29,8.219e-05,2]
[420636049,1776388239427,-500.0,8.219e-05,2]
[420636051,1776388239437,-2123.08,8.219e-05,2]
[420636052,1776388239446,-500.0,8.219e-05,2]
[420636053,1776388239455,-500.0,8.219e-05,2]
[420636054,1776388239466,-500.0,8.219e-05,2]
[420636055,1776388239475,-500.0,8.219e-05,2]
[420636056,1776388239485,-3990.31,8.219e-05,2]
[420636057,1776388239494,-361.25668749,8.219e-05,2]
[420636058,1776388239503,-1899.35,8.219e-05,2]
[420636059,1776388239512,-542.84,8.219e-05,2]
[420636060,1776388239522,-1715.34,8.219e-05,2]
[420636061,1776388239532,-1044.18,8.219e-05,2]
[420636062,1776388239541,-1466.41,8.219e-05,2]
[420636063,1776388239550,-500.0,8.219e-05,2]
[420636064,1776388239559,-500.0,8.219e-05,2]
[420636065,1776388239569,-1217.13,8.219e-05,2]
[420636066,1776388239578,-3042.61,8.219e-05,2]
[420636067,1776388239588,-500.0,8.219e-05,2]
[420636068,1776388239597,-1866.04,8.219e-05,2]
[420636069,1776388239606,-500.0,8.219e-05,2]
[420636070,1776388239616,-519.56,8.219e-05,2]
[420636071,1776388239625,-711.97,8.219e-05,2]
[420636072,1776388239636,-518.87,8.219e-05,2]
[420636073,1776388239645,-506.91,8.219e-05,2]
[420636074,1776388239655,-500.0,8.219e-05,2]
[420636075,1776388239665,-4657.7,8.219e-05,2]
[420636076,1776388239675,-394.19925941,8.219e-05,2]
[420636077,1776388239689,-105.80074059,8.219e-05,2]
[420636078,1776388239699,-2040.97,8.219e-05,2]
[420636079,1776388239708,-4518.0,8.219e-05,2]
[420636080,1776388239717,-789.72,8.219e-05,2]
[420636081,1776388239728,-1999.07,8.219e-05,2]
[420636082,1776388239739,-2412.62,8.219e-05,2]
[420636083,1776388239748,-500.0,8.219e-05,2]
[420636084,1776388239758,-4497.4,8.219e-05,2]
[420636085,1776388239767,-548.78,8.219e-05,2]
[420636086,1776388239778,-500.0,8.219e-05,2]
[420636087,1776388239788,-500.0,8.219e-05,2]
[420636088,1776388239798,-618.29,8.219e-05,2]
[420636089,1776388239807,-500.0,8.219e-05,2]
[420636090,1776388239816,-1320.44925941,8.219e-05,2]
[420636091,1776388239827,-274.46074059,8.219e-05,2]
[420636092,1776388239838,-500.0,8.219e-05,2]
[420636093,1776388239847,-500.0,8.219e-05,2]
[420636094,1776388239857,-391.95270821,8.219e-05,2]
[420636099,1776388240767,-443.8767968,8.219e-05,2]
[420636116,1776388243238,-1902.25049499,8.219e-05,2]
[420636117,1776388243249,-1589.47,8.219e-05,2]
[420636118,1776388243258,-3840.63,8.219e-05,2]
[420636119,1776388243269,-500.0,8.219e-05,2]
[420636120,1776388243279,-1045.83,8.219e-05,2]
[420636121,1776388243289,-529.87,8.219e-05,2]
[420636122,1776388243299,-4030.79,8.219e-05,2]
[420636123,1776388243308,-564.14,8.219e-05,2]
[420636124,1776388243492,-500.0,8.219e-05,2]
[420636125,1776388243503,-3825.19,8.219e-05,2]
[420636126,1776388243512,-500.0,8.219e-05,2]
[420636127,1776388243522,-4953.31770208,8.219e-05,2]
[420636128,1776388243537,-500.68,8.219e-05,2]
[420636129,1776388243548,-300.0,8.219e-05,2]
[420636130,1776388243559,-798.23978973,8.219e-05,2]
[420636131,1776388243569,-13591.26250819,8.219e-05,2]
[420636132,1776388243579,-2288.52,8.219e-05,2]
[420636133,1776388243588,-874.6,8.219e-05,2]
[420636134,1776388243597,-1043.98,8.219e-05,2]
[420636135,1776388243607,-500.0,8.219e-05,2]
[420636136,1776388243616,-500.0,8.219e-05,2]
[420636137,1776388243625,-2507.25,8.219e-05,2]
[420636138,1776388243634,-6079.75,8.219e-05,2]
[420636139,1776388243643,-5606.72,8.219e-05,2]
[420636140,1776388243652,-500.0,8.219e-05,2]
[420636141,1776388243661,-1462.7,8.219e-05,2]
[420636142,1776388243671,-11257.46,8.219e-05,2]
[420636143,1776388243680,-1430.42,8.219e-05,2]
[420636144,1776388243689,-500.0,8.219e-05,2]
[420636145,1776388243698,-579.59,8.219e-05,2]
[420636146,1776388243708,-671.76,8.219e-05,2]
[420636147,1776388243717,-500.0,8.219e-05,2]
[420636148,1776388243726,-500.0,8.219e-05,2]
[420636149,1776388243735,-1274.77,8.219e-05,2]
[420636150,1776388243745,-500.0,8.219e-05,2]
[420636151,1776388243754,-46.18714425,8.219e-05,2]
[420636152,1776388243766,-3711.70790314,8.219e-05,2]
[420636153,1776388243778,-1935.54495261,8.219e-05,2]
[420636154,1776388243787,-330.42217539,8.219e-05,2]
[420636155,1776388243799,-261.00782461,8.219e-05,2]
[420636156,1776388243808,-1222.33,8.219e-05,2]
[420636157,1776388243817,-407.68420989,8.219e-05,2]
[420636163,1776388246340,-92.31579011,8.219e-05,2]
[420636164,1776388246349,-1829.57,8.219e-05,2]
[420636165,1776388246359,-500.0,8.219e-05,2]
[420636166,1776388246368,-500.0,8.219e-05,2]
[420636167,1776388246377,-3824.05,8.219e-05,2]
[420636168,1776388246387,-500.0,8.219e-05,2]
[420636169,1776388246397,-500.0,8.219e-05,2]
[420636170,1776388246406,-150.331,8.414e-05,2]
[420636171,1776388246416,-2208.0,8.414e-05,2]
[420636172,1776388246425,-645.0,8.414e-05,2]
[420636173,1776388246440,-1408.0,8.414e-05,2]
[420636174,1776388246449,-542.86,8.493e-05,2]
[420636175,1776388246458,-500.0,8.493e-05,2]
[420636176,1776388246467,-1281.2879,8.493e-05,2]
[420636177,1776388246477,-454.52012625,8.493e-05,2]
[420636178,1776388246489,-45.47987375,8.493e-05,2]
[420636179,1776388246498,-929.15,8.493e-05,2]
[420636180,1776388246508,-500.0,8.493e-05,2]
[420636181,1776388246519,-778.01,8.493e-05,2]
[420636182,1776388246529,-500.0,8.493e-05,2]
[420636183,1776388246538,-500.0,8.493e-05,2]
[420636184,1776388246547,-500.0,8.493e-05,2]
[420636185,1776388246556,-463.36010905,8.493e-05,2]
[420636186,1776388246585,-36.63989095,8.493e-05,2]
[420636187,1776388246595,-500.0,8.493e-05,2]
[420636188,1776388246604,-500.0,8.493e-05,2]
[420636189,1776388246613,-500.0,8.493e-05,2]
[420636190,1776388246623,-500.0,8.493e-05,2]
[420636191,1776388246632,-191.34779513,8.493e-05,2]
[420636192,1776388246641,-500.0,8.493e-05,2]
[420636193,1776388246651,-500.0,8.493e-05,2]
[420636194,1776388246660,-500.0,8.493e-05,2]
[420636195,1776388246669,-2148.14,8.493e-05,2]
[420636196,1776388246678,-500.0,8.493e-05,2]
[420636197,1776388246688,-1455.98754442,8.493e-05,2]
[420636198,1776388246699,-211.84245558,8.493e-05,2]
[420636199,1776388246709,-500.0,8.493e-05,2]
[420636200,1776388246718,-500.0,8.493e-05,2]
[420636201,1776388246728,-204.07655956,8.493e-05,2]
[420636202,1776388246738,-500.0,8.493e-05,2]
[420636203,1776388246747,-500.0,8.493e-05,2]
[420636204,1776388246756,-377.82241866,8.493e-05,2]
[420636205,1776388246765,-500.0,8.493e-05,2]
[420636206,1776388246775,-500.0,8.493e-05,2]
[420636207,1776388246784,-500.0,8.493e-05,2]
[420636208,1776388246794,-500.0,8.493e-05,2]
[420636209,1776388246804,-500.0,8.493e-05,2]
[420636210,1776388246813,-1635.34,8.493e-05,2]
[420636211,1776388246822,-500.0,8.493e-05,2]
[420636212,1776388246832,-500.0,8.493e-05,2]
[420636213,1776388246841,-511.65,8.493e-05,2]
[420636214,1776388246850,-500.0,8.493e-05,2]
[420636215,1776388246861,-582.35822423,8.493e-05,2]
[420636217,1776388400950,5000.85639901,0.00024,120]
[420636220,1776388676291,1948.72287385,0.0002465,120]
[420636221,1776388728737,154.72190936,0.0001747,120]
[420636386,1776389444100,-514.0,6.575e-05,2]
[420636388,1776389444111,-287.98070351,6.575e-05,2]
[420636389,1776389444124,-3248.26,6.575e-05,2]
[420636390,1776389444135,-215.0975908,7.837e-05,2]
[420636391,1776389444147,-1398.68362074,7.918e-05,2]
[420636392,1776389444158,-93.80670302,8.063e-05,2]
[420636393,1776389444173,-66.19329698,8.063e-05,2]
[420636394,1776389444184,-300.0,8.177e-05,2]
[420636395,1776389444195,-2150.738,8.214e-05,2]
[420636396,1776389444207,-196.7750862,8.218e-05,2]
[420636397,1776389444218,-298.63097947,8.219e-05,2]
[420636398,1776389444229,-500.0,8.219e-05,2]
[420636399,1776389444241,-500.0,8.219e-05,2]
[420636400,1776389444252,-500.0,8.219e-05,2]
[420636401,1776389444263,-358.80865934,8.219e-05,2]
[420636402,1776389444275,-500.0,8.219e-05,2]
[420636403,1776389444288,-500.0,8.219e-05,2]
[420636404,1776389444299,-500.0,8.219e-05,2]
[420636405,1776389444312,-516.86,8.219e-05,2]
[420636406,1776389444325,-500.0,8.219e-05,2]
[420636408,1776389444337,-500.0,8.219e-05,2]
[420636410,1776389444348,-500.0,8.219e-05,2]
[420636411,1776389444359,-500.0,8.219e-05,2]
[420636412,1776389444370,-2058.63,8.219e-05,2]
[420636413,1776389444381,-500.0,8.219e-05,2]
[420636414,1776389444392,-500.0,8.219e-05,2]
[420636415,1776389444404,-1589.51,8.219e-05,2]
[420636416,1776389444415,-500.0,8.219e-05,2]
[420636417,1776389444427,-500.0,8.219e-05,2]
[420636418,1776389444438,-500.0,8.219e-05,2]
[420636419,1776389444449,-320.07441265,8.219e-05,2]
[420636420,1776389444461,-500.0,8.219e-05,2]
[420636421,1776389444472,-500.0,8.219e-05,2]
[420636422,1776389444482,-493.58479453,8.219e-05,2]
[420636423,1776389444491,-189.28949914,8.219e-05,2]
[420636424,1776389444503,-494.03050086,8.219e-05,2]
[420636425,1776389444512,-500.0,8.219e-05,2]
[420636426,1776389444522,-500.0,8.219e-05,2]
[420636427,1776389444531,-592.53,8.219e-05,2]
[420636428,1776389444541,-500.0,8.219e-05,2]
[420636429,1776389444550,-1671.63,8.219e-05,2]
[420636430,1776389444559,-269.93651029,8.219e-05,2]
[420636431,1776389444841,-927.1608562,8.219e-05,2]
[420636437,1776389446824,-301.97263351,8.219e-05,2]
[420636438,1776389446834,-500.0,8.219e-05,2]
[420636439,1776389446844,-500.0,8.219e-05,2]
[420636440,1776389446855,-464.87552622,8.219e-05,2]
[420636441,1776389446865,-500.0,8.219e-05,2]
[420636442,1776389446874,-1002.25,8.219e-05,2]
[420636443,1776389446883,-1023.22,8.219e-05,2]
[420636444,1776389446892,-500.0,8.219e-05,2]
[420636445,1776389446902,-2377.52,8.219e-05,2]
[420636446,1776389446911,-500.0,8.219e-05,2]
[420636447,1776389446920,-500.0,8.219e-05,2]
[420636448,1776389446931,-643.77,8.219e-05,2]
[420636449,1776389446942,-1171.4,8.219e-05,2]
[420636450,1776389446953,-500.0,8.219e-05,2]
[420636451,1776389446964,-500.0,8.219e-05,2]
[420636452,1776389446974,-500.0,8.219e-05,2]
[420636453,1776389446983,-252.84216752,8.219e-05,2]
[420636454,1776389446992,-500.0,8.219e-05,2]
[420636455,1776389447002,-851.72,8.219e-05,2]
[420636456,1776389447011,-500.0,8.219e-05,2]
[420636457,1776389447021,-1643.87,8.219e-05,2]
[420636458,1776389447032,-500.0,8.219e-05,2]
[420636459,1776389447041,-1166.41,8.219e-05,2]
[420636460,1776389447052,-500.0,8.219e-05,2]
[420636461,1776389447061,-2231.81,8.219e-05,2]
[420636462,1776389447071,-500.0,8.219e-05,2]
[420636463,1776389447080,-1753.34,8.219e-05,2]
[420636464,1776389447091,-500.0,8.219e-05,2]
[420636465,1776389447102,-520.22,8.219e-05,2]
[420636466,1776389447112,-500.0,8.219e-05,2]
[420636467,1776389447122,-4329.75,8.219e-05,2]
[420636468,1776389447131,-1405.31,8.219e-05,2]
[420636469,1776389447140,-713.17,8.219e-05,2]
[420636470,1776389447150,-500.0,8.219e-05,2]
[420636471,1776389447159,-3664.71,8.219e-05,2]
[420636472,1776389447169,-2162.06,8.219e-05,2]
[420636473,1776389447178,-500.0,8.219e-05,2]
[420636474,1776389447187,-1820.21,8.219e-05,2]
[420636475,1776389447197,-500.0,8.219e-05,2]
[420636476,1776389447206,-500.0,8.219e-05,2]
[420636477,1776389447216,-500.0,8.219e-05,2]
[420636478,1776389447225,-1000.67,8.219e-05,2]
[420636479,1776389447234,-500.0,8.219e-05,2]
[420636480,1776389447243,-500.0,8.219e-05,2]
[420636481,1776389447252,-500.0,8.219e-05,2]
[420636482,1776389447262,-500.0,8.219e-05,2]
[420636483,1776389447272,-2915.83,8.219e-05,2]
[420636484,1776389447281,-500.0,8.219e-05,2]
[420636485,1776389447290,-1523.24,8.219e-05,2]
[420636486,1776389447299,-500.0,8.219e-05,2]
[420636487,1776389447309,-3680.61,8.219e-05,2]
[420636488,1776389447318,-1955.93,8.219e-05,2]
[420636489,1776389447328,-1788.29,8.219e-05,2]
[420636490,1776389447336,-1915.78,8.219e-05,2]
[420636491,1776389447346,-525.91,8.219e-05,2]
[420636492,1776389447355,-3665.81,8.219e-05,2]
[420636493,1776389447364,-500.0,8.219e-05,2]
[420636494,1776389447373,-500.0,8.219e-05,2]
[420636495,1776389447382,-2312.09,8.219e-05,2]
[420636496,1776389447392,-500.0,8.219e-05,2]
[420636497,1776389447401,-1401.75,8.219e-05,2]
[420636498,1776389447410,-5373.11,8.219e-05,2]
[420636499,1776389447419,-4310.01,8.219e-05,2]
[420636500,1776389447428,-76.68371752,8.219e-05,2]
[420636501,1776389462547,-2097.48,6.575e-05,2]
[420636508,1776390255142,2000.0,0.00024658,120]
[420636583,1776390639024,-2186.75456431,6.19e-05,2]
[420636584,1776390639036,-509.0,6.19e-05,2]
[420636585,1776390639047,-285.97306861,6.237e-05,2]
[420636586,1776390639059,-2179.33,6.575e-05,2]
[420636587,1776390639071,-151.0,7.03e-05,2]
[420636588,1776390639084,-500.0,7.207e-05,2]
[420636589,1776390639095,-500.0,7.207e-05,2]
[420636590,1776390639107,-269.36759741,7.207e-05,2]
[420636591,1776390639182,-361.88247098,7.207e-05,2]
[420636592,1776390639194,-501.61619094,7.207e-05,2]
[420636593,1776390639205,-500.0,7.207e-05,2]
[420636594,1776390639217,-44.68093037,7.207e-05,2]
[420636595,1776390639230,-455.31906963,7.207e-05,2]
[420636596,1776390639241,-500.0,7.207e-05,2]
[420636597,1776390639252,-500.0,7.207e-05,2]
[420636598,1776390639263,-500.0,7.207e-05,2]
[420636599,1776390639277,-500.0,7.207e-05,2]
[420636601,1776390639289,-500.0,7.207e-05,2]
[420636603,1776390639299,-500.0,7.207e-05,2]
[420636605,1776390639310,-416.89592735,7.207e-05,2]
[420636606,1776390639322,-50000.0,7.208e-05,2]
[420636607,1776390639333,-888.91203502,7.208e-05,2]
[420636608,1776390639345,-3552.09249194,7.208e-05,2]
[420636609,1776390639356,-187.68297445,7.208e-05,2]
[420636610,1776390639368,-750.73189781,7.208e-05,2]
[420636611,1776390639379,-1689.14677008,7.208e-05,2]
[420636612,1776390639392,-3002.92759126,7.208e-05,2]
[420636613,1776390639403,-4692.07436134,7.208e-05,2]
[420636614,1776390639414,-6756.58708033,7.208e-05,2]
[420636615,1776390639426,-9187.26928248,7.208e-05,2]
[420636616,1776390639437,-168.52007373,7.208e-05,2]
[420636617,1776390639449,-673.40621463,7.208e-05,2]
[420636618,1776390639460,-400.06146013,7.5e-05,2]
[420636619,1776390639471,-501.98944577,7.673e-05,2]
[420636620,1776390639483,-500.0,7.673e-05,2]
[420636621,1776390639494,-500.4259151,7.673e-05,2]
[420636622,1776390639507,-500.0,7.673e-05,2]
[420636623,1776390639518,-518.07049507,7.673e-05,2]
[420636624,1776390639531,-500.0,7.673e-05,2]
[420636625,1776390639542,-500.0,7.673e-05,2]
[420636626,1776390639553,-500.0,7.673e-05,2]
[420636627,1776390639564,-500.0,7.692e-05,2]
[420636628,1776390639576,-500.0,7.692e-05,2]
[420636629,1776390639587,-500.0,7.692e-05,2]
[420636630,1776390639599,-500.0,7.692e-05,2]
[420636631,1776390639610,-500.0,7.692e-05,2]
[420636632,1776390639622,-500.0,7.692e-05,2]
[420636633,1776390639634,-500.0,7.692e-05,2]
[420636634,1776390639646,-500.0,7.692e-05,2]
[420636635,1776390639657,-500.0,7.692e-05,2]
[420636636,1776390639669,-500.0,7.692e-05,2]
[420636637,1776390639681,-500.0,7.692e-05,2]
[420636638,1776390639692,-341.91623897,7.692e-05,2]
[420636639,1776390639704,-213982.1729662,7.693e-05,2]
[420636640,1776390639715,-1084404.5295579,7.693e-05,2]
[420636641,1776390639728,-216.84249316,7.693e-05,2]
[420636642,1776390639741,-304.51083482,7.7e-05,2]
[420636643,1776390639752,-300.12964764,7.7e-05,2]
[420636644,1776390639763,-500.23202433,7.793e-05,2]
[420636645,1776390639775,-160.0,7.953e-05,2]
[420636646,1776390639786,-156.071,8.218e-05,2]
[420636647,1776390639797,-1214.6536,8.219e-05,2]
[420636648,1776390639809,-511.7899729,8.219e-05,2]
[420636649,1776390639820,-500.0,8.219e-05,2]
[420636650,1776390639831,-500.0,8.219e-05,2]
[420636651,1776390639843,-500.0,8.219e-05,2]
[420636652,1776390639855,-491.93762689,8.219e-05,2]
[420636653,1776390639866,-500.0,8.219e-05,2]
[420636654,1776390639879,-500.0,8.219e-05,2]
[420636655,1776390639890,-567.93,8.219e-05,2]
[420636656,1776390639903,-500.0,8.219e-05,2]
[420636657,1776390639915,-1013.06,8.219e-05,2]
[420636658,1776390639926,-507.43017761,8.219e-05,2]
[420636659,1776390639938,-500.0,8.219e-05,2]
[420636660,1776390639952,-500.0,8.219e-05,2]
[420636661,1776390639963,-617.42,8.219e-05,2]
[420636662,1776390639974,-1195.31,8.219e-05,2]
[420636663,1776390639986,-518.78224474,8.219e-05,2]
[420636664,1776390639998,-500.0,8.219e-05,2]
[420636665,1776390640010,-816.85,8.219e-05,2]
[420636666,1776390640021,-200.27477322,8.219e-05,2]
[420636667,1776390640033,-500.0,8.219e-05,2]
[420636668,1776390640043,-500.0,8.219e-05,2]
[420636669,1776390640052,-500.0,8.219e-05,2]
[420636670,1776390640061,-500.0,8.219e-05,2]
[420636671,1776390640070,-500.0,8.219e-05,2]
[420636672,1776390640079,-2097.54,8.219e-05,2]
[420636673,1776390640089,-704.81,8.219e-05,2]
[420636674,1776390640357,-510.87502982,8.219e-05,2]
[420636675,1776390640376,-500.0,8.219e-05,2]
[420636676,1776390640387,-500.0,8.219e-05,2]
[420636678,1776390640397,-1523.29,8.219e-05,2]
[420636679,1776390640407,-500.0,8.219e-05,2]
[420636680,1776390640416,-685.84,8.219e-05,2]
[420636681,1776390640426,-500.0,8.219e-05,2]
[420636682,1776390640435,-500.0,8.219e-05,2]
[420636683,1776390640445,-500.0,8.219e-05,2]
[420636684,1776390640455,-500.0,8.219e-05,2]
[420636685,1776390640465,-1.814151,8.219e-05,2]
[420636687,1776390641177,-509.34019575,8.219e-05,2]
[420636688,1776390641282,-111.96422287,8.219e-05,2]
[420636689,1776390641291,-386.63577858,8.219e-05,2]
[420636702,1776390643810,-361.0,8.219e-05,2]
[420636703,1776390643822,-701.62763894,8.219e-05,2]
[420636704,1776390643833,-224.26658248,8.219e-05,2]
[420636705,1776390643843,-124.61880935,8.219e-05,2]
[420636706,1776390643856,-375.38119065,8.219e-05,2]
[420636707,1776390643865,-1507.8,8.219e-05,2]
[420636708,1776390643875,-500.0,8.219e-05,2]
[420636709,1776390643887,-1001.61,8.219e-05,2]
[420636710,1776390643897,-2428.47,8.219e-05,2]
[420636711,1776390643908,-500.0,8.219e-05,2]
[420636712,1776390643917,-500.0,8.219e-05,2]
[420636713,1776390643927,-358.56218487,8.219e-05,2]
[420636714,1776390643937,-501.37388328,8.219e-05,2]